[Event "Cracovia Festival-A 2023"]
[Site "Krakow"]
[Date "2024.01.02"]
[Round "7.3"]
[White "Keinanen, Toivo"]
[Black "Pajeken, Jakob Leon"]
[Result "1-0"]
[ECO "A06"]
[WhiteElo "2522"]
[BlackElo "2428"]
[Annotator "TA"]
[PlyCount "59"]
[EventDate "2023.12.24"]
[EventType "swiss"]
[EventCountry "POL"]
[SourceTitle "playchess.com"]
[Source "ChessBase"]
[SourceQuality "1"]
[TimeControl "40/5400+30:1800+30"]

{[%evp 14,59,-17,4,8,0,0,-3,14,0,44,19,27,23,25,26,33,20,58,60,81,43,110,82,125,112,118,127,125,131,205,196,222,218,285,273,538,523,534,516,534,532,560,547,525,533,570,588]} 1. Nf3 {[%emt 0:00:03]} d5 {[%emt 0:00:23]} 2. g3 {[%emt 0:00:11]} g6 {[%emt 0:00:17]} 3. c4 {[%emt 0:00:22]} dxc4 {[%emt 0:00:40]} 4. Na3 {[%emt 0:00:30]} Bg7 {[%emt 0:02:47]} 5. Nxc4 {[%emt 0:00:07]} Nc6 {[%emt 0:00:36]} 6. Bg2 {[%emt 0:01:16]} e5 {[%emt 0:02:27][%cal Be7e5,Be5e4][%mdl 32]} 7. O-O {[%emt 0:00:03]} Nge7 {[%emt 0:01:55]} 8. d3 {[%emt 0:00:38]} O-O {[%emt 0:02:49] A20: English Opening: 1...e5.} 9. Rb1 {[%emt 0:01:19]} a5 {[%emt 0:10:08]} 10. b3 {[%emt 0:02:48] [#]} Bf5 $146 {[%emt 0:03:51] The position is equal.} ({Predecessor:} 10... Re8 11. Bb2 Nf5 12. e3 Nd6 13. Qe2 Bf5 14. Rfd1 Qd7 15. Ng5 Bg4 16. Bxc6 bxc6 17. f3 Bf5 18. Rbc1 a4 19. g4 Qe7 20. Ne4 {½-½ Gumularz,S (2517)-Eljanov,P (2672) FIDE World Cup Europe Hybrid Qual 2021 (2.1)}) 11. Bb2 {[%emt 0:10:49][%cal Rf3e5]} e4 {[%emt 0:03:00]} 12. Ne1 {[%emt 0:02:49][%cal Bf3e1,Be1d3,Bd3f4][%mdl 32]} exd3 {[%emt 0:11:04]} 13. e4 {[%emt 0:02:19] Threatens to win with Bxg7.} Be6 {[%emt 0:01:02]} 14. Bxg7 {[%emt 0:03:47]} Kxg7 {[%emt 0:00:38]} 15. Nxd3 {[%emt 0:01:02]} Nb4 {[%emt 0:05:32]} 16. Nf4 {[%emt 0:06:52]} b5 {[%emt 0:16:16] And now ...Qxd1 would win.} 17. Ne5 {[%emt 0:10:16] Black must now prevent Nxe6+. White is more active.} Qxd1 {[%emt 0:05:41]} ({Black should play} 17... Qd6 $1 $14 18. Nf3 Bg4) 18. Rfxd1 {[%emt 0:03:06] Nxe6+ would be deadly.} Rfd8 {[%emt 0:03:37]} 19. Nxe6+ {[%emt 0:08:26]} fxe6 {[%emt 0:00:04]} 20. a4 {[%emt 0:00:31]} bxa4 {[%emt 0:02:07]} 21. bxa4 {[%emt 0:01:31]} Rab8 {[%emt 0:03:26]} (21... g5 $16 22. Rbc1 Rxd1+ 23. Rxd1 Kf6) 22. Nd7 $18 {[%emt 0:05:01]} Rbc8 {[%emt 0:03:01]} 23. Nc5 {[%emt 0:04:02]} ({Resist} 23. Bh3 c5) 23... Kf6 {[%emt 0:01:40] [#]} 24. Bh3 $1 {[%emt 0:01:52]} Rd6 $2 {[%emt 0:01:10] [#]} (24... Nbc6 {is a better defense.} 25. Nxe6 (25. Bxe6 Rxd1+ 26. Rxd1 Rd8 $18) 25... Rxd1+ 26. Rxd1 h6) 25. e5+ $1 {[%emt 0:04:52][%mdl 576] Decoy. White is clearly winning.} Kxe5 {[%emt 0:00:05]} 26. f4+ {[%emt 0:00:47]} Kf6 {[%emt 0:00:09]} 27. Ne4+ {[%emt 0:00:05]} Kg7 {[%emt 0:00:23]} 28. Nxd6 {[%emt 0:00:24]} cxd6 {[%emt 0:00:05]} 29. Rxd6 {[%emt 0:01:05]} Nf5 {[%emt 0:00:18]} 30. Rxe6 {[%emt 0:02:53] Weighted Error Value: White=0.05 (flawless) /Black=0.42} 1-0

[Event "Cracovia Festival-A 2023"]
[Site "Krakow"]
[Date "2024.01.02"]
[Round "7.4"]
[White "Sernecki, Franciszek"]
[Black "Akbas, Umut Ata"]
[Result "0-1"]
[ECO "E11"]
[WhiteElo "2325"]
[BlackElo "2446"]
[Annotator "RC"]
[PlyCount "96"]
[EventDate "2023.12.24"]
[EventType "swiss"]
[EventCountry "POL"]
[SourceTitle "playchess.com"]
[Source "ChessBase"]
[SourceQuality "1"]
[TimeControl "40/5400+30:1800+30"]

1. d4 {[%emt 0:00:08]} Nf6 {[%emt 0:09:33]} 2. c4 {[%emt 0:00:37]} e6 {[%emt 0:00:09]} 3. Nf3 {[%emt 0:00:05]} Bb4+ {[%emt 0:00:06]} 4. Bd2 {[%emt 0:00:13]} a5 {[%emt 0:00:10]} 5. g3 {[%emt 0:00:43]} Be7 {[%emt 0:00:10]} 6. Bg2 {[%emt 0:01:14]} O-O {[%emt 0:00:11]} 7. O-O {[%emt 0:01:58]} d5 {[%emt 0:00:08]} 8. Qc2 {[%emt 0:01:38]} c6 {[%emt 0:00:10]} 9. Bf4 {[%emt 0:03:37]} Nbd7 {[%emt 0:01:50]} 10. Rd1 {[%emt 0:05:02]} a4 {[%emt 0:00:49]} 11. Ne5 {[%emt 0:11:59]} Nh5 {[%emt 0:11:58]} 12. Bc1 {[%emt 0:02:51]} f5 {[%emt 0:03:47]} 13. Nd2 {[%emt 0:11:24]} Nhf6 {[%emt 0:29:29]} 14. Ndf3 {[%emt 0:06:14]} Qe8 {[%emt 0:01:15]} 15. b3 {[%emt 0:06:13]} axb3 {[%emt 0:03:35]} 16. Qxb3 {[%emt 0:00:15]} Qh5 {[%emt 0:03:26]} 17. a4 {[%emt 0:05:18]} Bd8 {[%emt 0:03:13]} 18. Bg5 {[%emt 0:09:11]} Nxe5 {[%emt 0:05:14]} 19. dxe5 {[%emt 0:00:36]} h6 {[%emt 0:00:15]} 20. Bc1 {[%emt 0:05:40]} Nd7 {[%emt 0:03:27]} 21. Ba3 {[%emt 0:03:44]} Re8 {[%emt 0:00:40]} 22. Bd6 {[%emt 0:02:05]} Bb6 {[%emt 0:04:36]} 23. Nd4 {[%emt 0:04:05]} Ra6 {[%emt 0:02:01]} 24. Nxe6 {[%emt 0:05:17]} dxc4 {[%emt 0:01:55]} 25. Nf4 {[%emt 0:05:18]} cxb3 {[%emt 0:04:05]} 26. Nxh5 {[%emt 0:00:02]} Nxe5 {[%emt 0:00:02]} 27. Rab1 {[%emt 0:02:10]} Ng4 {[%emt 0:02:49]} 28. e3 {[%emt 0:00:21]} Be6 {[%emt 0:00:01]} 29. Nf4 {[%emt 0:03:23]} Bf7 {[%emt 0:00:32]} 30. Nd3 {[%emt 0:00:20]} Rd8 {[%emt 0:04:56]} 31. Nc1 {[%emt 0:03:08]} Bc5 {[%emt 0:01:08]} 32. Nxb3 {[%emt 0:00:04]} Bxb3 {[%emt 0:01:29]} 33. Rxb3 {[%emt 0:00:02]} Rxd6 {[%emt 0:00:59]} 34. Rxd6 {[%emt 0:00:04]} Bxd6 {[%emt 0:00:05]} 35. Rxb7 {[%emt 0:00:02]} Ne5 {[%emt 0:00:28]} 36. h3 {[%emt 0:01:19]} Rxa4 {[%emt 0:01:23]} 37. f4 {[%emt 0:00:05]} Ra1+ {[%emt 0:00:05]} 38. Kh2 {[%emt 0:00:45]} Nc4 {[%emt 0:00:36]} 39. Rd7 {[%emt 0:00:10]} Nxe3 {[%emt 0:02:08]} 40. Bxc6 {[%emt 0:00:00]} Ra2+ {[%emt 0:00:00]} 41. Kh1 {[%emt 0:00:27]} Bc5 {[%emt 0:03:03]} 42. Rc7 {[%emt 0:01:26]} Bb6 {[%emt 0:05:43]} 43. Rb7 {[%emt 0:00:32]} Rb2 {[%emt 0:00:11]} 44. Kg1 {[%emt 0:00:51]} Ng4+ {[%emt 0:03:11]} 45. Kf1 {[%emt 0:00:09]} Nh2+ {[%emt 0:00:06]} 46. Ke1 {[%emt 0:00:03]} Bf2+ {[%emt 0:00:04]} 47. Kd1 {[%emt 0:00:02]} Rxb7 {[%emt 0:00:05]} 48. Bxb7 {[%emt 0:00:04]} Bxg3 {[%emt 0:00:05]} 0-1

[Event "Cracovia Festival-A 2023"]
[Site "Krakow"]
[Date "2024.01.02"]
[Round "7.5"]
[White "Pacan-Milej, Kosma"]
[Black "Dzida, Kamil"]
[Result "1-0"]
[ECO "E53"]
[WhiteElo "2425"]
[BlackElo "2396"]
[Annotator "RC"]
[PlyCount "107"]
[EventDate "2023.12.24"]
[EventType "swiss"]
[EventCountry "POL"]
[SourceTitle "playchess.com"]
[Source "ChessBase"]
[SourceQuality "1"]
[TimeControl "40/5400+30:1800+30"]

1. d4 {[%emt 0:00:02]} Nf6 {[%emt 0:00:15]} 2. c4 {[%emt 0:00:04]} e6 {[%emt 0:00:04]} 3. Nc3 {[%emt 0:00:06]} Bb4 {[%emt 0:00:05]} 4. e3 {[%emt 0:00:08]} O-O {[%emt 0:00:10]} 5. Bd3 {[%emt 0:00:05]} d5 {[%emt 0:00:10]} 6. Nf3 {[%emt 0:00:10]} c5 {[%emt 0:00:09]} 7. cxd5 {[%emt 0:00:24]} exd5 {[%emt 0:00:25]} 8. dxc5 {[%emt 0:00:18]} Bxc5 {[%emt 0:05:39]} 9. h3 {[%emt 0:01:13]} Nc6 {[%emt 0:02:15]} 10. O-O {[%emt 0:00:08]} a6 {[%emt 0:00:15]} 11. b3 {[%emt 0:01:01]} Qe7 {[%emt 0:14:37]} 12. Bb2 {[%emt 0:00:54]} Rd8 {[%emt 0:00:48]} 13. Rc1 {[%emt 0:02:31]} Ne4 {[%emt 0:05:37]} 14. Ne2 {[%emt 0:05:54]} Bd6 {[%emt 0:16:51]} 15. Bb1 {[%emt 0:16:31]} Ng5 {[%emt 0:08:30]} 16. Nxg5 {[%emt 0:04:39]} Qxg5 {[%emt 0:00:09]} 17. Qd3 {[%emt 0:00:47]} Qh6 {[%emt 0:03:30]} 18. Ng3 {[%emt 0:03:30]} Ne7 {[%emt 0:03:24]} 19. Qe2 {[%emt 0:03:27]} Qg5 {[%emt 0:07:04]} 20. Qf3 {[%emt 0:05:53]} Ng6 {[%emt 0:00:09]} 21. Rfd1 {[%emt 0:05:33]} Be6 {[%emt 0:07:39]} 22. Nf5 {[%emt 0:04:59]} Bb8 {[%emt 0:04:16]} 23. Qg4 {[%emt 0:01:26]} Qxg4 {[%emt 0:01:37]} 24. hxg4 {[%emt 0:00:02]} Ne5 {[%emt 0:02:17]} 25. f3 {[%emt 0:03:25]} Bxf5 {[%emt 0:00:07]} 26. Bxf5 {[%emt 0:00:35]} Nc6 {[%emt 0:00:48]} 27. Rc5 {[%emt 0:02:03]} d4 {[%emt 0:02:54]} 28. exd4 {[%emt 0:01:18]} Ba7 {[%emt 0:01:53]} 29. Rc4 {[%emt 0:00:07]} Na5 {[%emt 0:04:40]} 30. Rc7 {[%emt 0:02:39]} Bb6 {[%emt 0:01:10]} 31. Rd7 {[%emt 0:03:25]} Rxd7 {[%emt 0:03:08]} 32. Bxd7 {[%emt 0:00:02]} Rd8 {[%emt 0:00:12]} 33. Bf5 {[%emt 0:10:18]} Nc6 {[%emt 0:00:09]} 34. Be4 {[%emt 0:01:36]} Bxd4+ {[%emt 0:00:26]} 35. Bxd4 {[%emt 0:00:04]} Nxd4 {[%emt 0:00:05]} 36. Kf2 {[%emt 0:00:06]} b6 {[%emt 0:00:11]} 37. Rd2 {[%emt 0:00:50]} Kf8 {[%emt 0:02:19]} 38. Ke3 {[%emt 0:00:14]} Ne6 {[%emt 0:00:05]} 39. Rxd8+ {[%emt 0:00:22]} Nxd8 {[%emt 0:00:00]} 40. Kd4 {[%emt 0:00:00]} Ke7 {[%emt 0:00:00]} 41. Kd5 {[%emt 0:01:58]} g6 {[%emt 0:04:38]} 42. b4 {[%emt 0:05:24]} Kd7 {[%emt 0:02:01]} 43. Bd3 {[%emt 0:01:44]} Nc6 {[%emt 0:04:29]} 44. a3 {[%emt 0:00:30]} b5 {[%emt 0:00:26]} 45. g5 {[%emt 0:01:42]} Kc7 {[%emt 0:01:23]} 46. f4 {[%emt 0:00:43]} Kd7 {[%emt 0:00:37]} 47. Kc5 {[%emt 0:01:14]} Kc7 {[%emt 0:00:12]} 48. Be4 {[%emt 0:00:23]} Nb8 {[%emt 0:01:31]} 49. Bd5 {[%emt 0:00:41]} Nd7+ {[%emt 0:00:17]} 50. Kd4 {[%emt 0:00:05]} f6 {[%emt 0:00:38]} 51. Be6 {[%emt 0:02:48]} fxg5 {[%emt 0:01:48]} 52. fxg5 {[%emt 0:00:17]} Kd6 {[%emt 0:00:30]} 53. Bxd7 {[%emt 0:00:33]} Kxd7 {[%emt 0:00:19]} 54. Ke4 1-0

[Event "Cracovia Festival-A 2023"]
[Site "Krakow"]
[Date "2024.01.02"]
[Round "7.6"]
[White "Aakash Sharadchandra, Dalvi"]
[Black "Polak, Tomas"]
[Result "0-1"]
[ECO "A40"]
[WhiteElo "2130"]
[BlackElo "2517"]
[Annotator "TA"]
[PlyCount "116"]
[EventDate "2023.12.24"]
[EventType "swiss"]
[EventCountry "POL"]
[SourceTitle "playchess.com"]
[Source "ChessBase"]
[SourceQuality "1"]
[TimeControl "40/5400+30:1800+30"]

{[%evp 9,116,39,38,25,35,29,64,35,36,28,34,33,57,30,31,0,0,0,0,0,-7,-20,-25,-32,-20,-77,-82,-119,-120,-160,-160,-209,-149,-166,-122,-178,-169,-190,-176,-261,-258,-256,-151,-158,-150,-153,-138,-121,-100,-109,-104,-184,-176,-364,-115,-343,-131,-131,-126,-140,-102,-144,-57,-138,-138,-116,-100,-133,-137,-127,-123,-131,-135,-122,0,-137,-115,-109,-119,-141,-141,-146,-144,-229,-237,-226,-163,-260,-251,-229,-264,-323,-314,-258,-223,-481,-480,-450,-456,-412,-422,-1038,-1706,-1083,-896,-1460,-1364,-864,-744]} 1. d4 {[%emt 0:00:02]} b6 {[%emt 0:03:04]} 2. e4 {[%emt 0:00:48]} Bb7 {[%emt 0:00:04]} 3. Bd3 {[%emt 0:00:15]} Nf6 {[%emt 0:00:14]} 4. Nc3 {[%emt 0:00:11]} e6 {[%emt 0:00:10]} 5. Nf3 {[%emt 0:00:10]} Bb4 {[%emt 0:00:10]} 6. Nd2 {[%emt 0:00:07]} d5 {[%emt 0:11:44]} 7. e5 {[%emt 0:00:24]} Nfd7 {[%emt 0:01:10]} 8. Ne2 {[%emt 0:03:18] White is slightly better.} (8. Qg4 $5 {[%cal Rg4g7]}) 8... Ba6 {[%emt 0:02:36]} 9. Bxa6 {[%emt 0:01:00]} Nxa6 {[%emt 0:00:09]} 10. O-O {[%emt 0:01:06]} Be7 {[%emt 0:01:50]} 11. f4 {[%emt 0:03:24]} O-O {[%emt 0:05:15]} 12. f5 {[%emt 0:10:34]} exf5 {[%emt 0:00:44]} 13. Rxf5 {[%emt 0:02:55]} c5 {[%emt 0:00:52]} 14. c3 {[%emt 0:01:03]} Nc7 {[%emt 0:01:58]} 15. Nf1 {[%emt 0:05:19]} f6 {[%emt 0:04:45]} 16. e6 {[%emt 0:23:49]} g6 {[%emt 0:09:15]} 17. exd7 {[%emt 0:00:22]} gxf5 $17 {[%emt 0:00:08]} 18. Nf4 {[%emt 0:00:55]} Qxd7 {[%emt 0:10:07]} 19. Ng3 {[%emt 0:02:46]} Bd6 {[%emt 0:02:36]} 20. Qh5 {[%emt 0:02:36]} (20. Nfh5 $17) 20... Qe8 {[%emt 0:04:57] ...Qe1+ would be deadly.} 21. Qd1 {[%emt 0:08:41] Dodges Qe1+} Kh8 {[%emt 0:08:38] ...cxd4 is the strong threat.} 22. Qf1 {[%emt 0:08:48]} (22. Nxf5 $17 Qd7 23. Nxd6 Qxd6 24. Be3) 22... Qd7 $19 {[%emt 0:09:51]} 23. Bd2 {[%emt 0:01:02]} Rae8 {[%emt 0:04:37]} 24. Qf3 {[%emt 0:00:37]} (24. Nfh5 $142) 24... cxd4 {[%emt 0:09:51]} 25. cxd4 {[%emt 0:00:26]} Rg8 {[%emt 0:05:07]} (25... Nb5 $19 26. Bc3 Bxf4 27. Qxf4 Nxc3 28. bxc3 Qe7 29. Nxf5 Qe4) 26. Rf1 $17 {[%emt 0:02:38]} Bxf4 {[%emt 0:01:40]} 27. Qxf4 {[%emt 0:00:41]} Rg4 {[%emt 0:00:35]} 28. Qf3 {[%emt 0:00:40]} Reg8 {[%emt 0:00:55] Hoping for ...Nb5.} (28... Rxd4 $6 29. Bc3 Ree4 30. Bxd4 Rxd4 31. Nxf5 $11) 29. Rf2 {[%emt 0:00:32]} Qe6 {[%emt 0:01:05]} (29... Rxd4 $6 30. Bc3 Rgg4 31. Bxd4 Rxd4 32. Nxf5 $11) 30. Bf4 {[%emt 0:04:06]} (30. Nxf5 $17 Qe4 31. Qxe4 Rxe4 32. Kf1) 30... Nb5 $19 {[%emt 0:00:10]} 31. h3 $2 {[%emt 0:01:31]} (31. Qd1) 31... R4g6 $2 {[%emt 0:00:22]} (31... Nxd4 32. Qc3 Nb5 33. Qd3 Rxf4 34. Rxf4 $19) (31... Qe1+ $19 {is more deadly.} 32. Kh2 Nxd4) 32. Qd3 $2 {[%emt 0:03:22]} (32. Re2 $17 {might work better.} Qd7 33. Qd3) 32... Nd6 $2 {[%emt 0:00:28]} (32... Qe1+ $19 {has better winning chances.} 33. Qf1 Qxf1+ 34. Nxf1 Nxd4) 33. Bxd6 $17 {[%emt 0:00:09]} Qxd6 {[%emt 0:00:05]} 34. Nxf5 {[%emt 0:00:04]} Qc7 {[%emt 0:00:51]} 35. Qf3 {[%emt 0:00:28]} Qd7 {[%emt 0:00:54]} (35... Re8 $1 $17 36. Nh4 Rg7) 36. Nh4 {[%emt 0:00:33] [#]} (36. Re2 $1 $15) 36... Rg3 $1 {[%emt 0:00:52]} 37. Qxf6+ {[%emt 0:00:28]} Qg7 {[%emt 0:00:03]} 38. Qf4 {[%emt 0:04:35] [#]} Qg5 $1 {[%emt 0:00:45]} (38... Rxh3 39. Ng6+ Qxg6 40. Qe5+ Qg7 41. Qxg7+ Kxg7 42. gxh3 $11) 39. Qxg5 {[%emt 0:01:48]} R8xg5 {[%emt 0:00:30][%mdl 4096] Endgame KRR-KRN} 40. Kh2 {[%emt 0:00:00]} Rd3 {[%emt 0:00:00]} 41. Nf3 {[%emt 0:04:18]} Rg7 {[%emt 0:03:11] Black is more active.} (41... Rg8 $17 42. Re2 Rd1) 42. Re2 {[%emt 0:00:43]} (42. Ne5 $1 $11 Rxd4 43. Nf7+ Rxf7 44. Rxf7) 42... Rc7 {[%emt 0:00:33] White is now going downhill.} 43. Re5 {[%emt 0:01:03]} Kg7 {[%emt 0:02:29]} 44. Rxd5 {[%emt 0:01:49]} Re3 {[%emt 0:00:32]} 45. Ne5 {[%emt 0:11:29]} Re2 {[%emt 0:02:03][%mdl 1024] Black has strong compensation.} 46. Nd3 {[%emt 0:00:14]} (46. b4 $17 {is a better defense.}) 46... Rd2 {[%emt 0:01:27]} 47. Nf4 {[%emt 0:00:18] Threatens to win with Ne6+.} Kf7 {[%emt 0:03:57] Repels Ne6} (47... Rxb2 $2 48. Ne6+ Kf6 49. Nxc7 $18) 48. Rh5 {[%emt 0:01:21]} (48. b4 $142) 48... Ke8 $19 {[%emt 0:00:36]} 49. Ne6 {[%emt 0:04:10]} Rcc2 {[%emt 0:01:50]} 50. Kg3 {[%emt 0:00:20]} Rxg2+ {[%emt 0:07:23]} (50... Rxb2 $2 51. Rxh7 Rxg2+ 52. Kh4 $19) 51. Kf4 {[%emt 0:02:23]} Kf7 {[%emt 0:02:25]} (51... Rxb2 $2 52. Rxh7 Rbf2+ 53. Ke5 $19) 52. d5 {[%emt 0:02:34]} (52. Kf5 Rcf2+ 53. Nf4) 52... Kg6 {[%emt 0:00:50]} (52... Rxb2 53. Ke5 Rbe2+ 54. Kd6 Rxa2 55. Rxh7+ Kg6 56. Rh8 $17) 53. Re5 {[%emt 0:01:03]} Rcf2+ {[%emt 0:04:02]} (53... Rxb2 $2 54. Nd4 $19) 54. Ke4 {[%emt 0:00:36]} Re2+ {[%emt 0:00:33]} ({Worse is} 54... Rxb2 55. Nf4+ Kf6 56. Re6+ Kf7 57. Nxg2 Rxg2 58. Rh6 $11) 55. Kd4 {[%emt 0:00:53]} (55. Kf3 $142 Rxe5 56. Nf4+ Kf6 57. Nxg2) 55... Rxe5 {[%emt 0:01:44]} ({Not} 55... Rxb2 56. Nf4+ Kf6 57. Nxg2 Rxg2 58. Re6+ Kf5 59. a4 $11 (59. Re5+ Kf6 $11)) 56. Kxe5 {[%emt 0:00:26]} Kf7 {[%emt 0:02:13]} 57. Nd8+ {[%emt 0:00:57]} Ke8 {[%emt 0:00:26]} 58. Nc6 {[%emt 0:00:06]} Kd7 {[%emt 0:00:23] Weighted Error Value: White=0.53/Black=0.31} 0-1

[Event "Cracovia Festival-A 2023"]
[Site "Krakow"]
[Date "2024.01.02"]
[Round "7.7"]
[White "Janik, Igor"]
[Black "Skytte, Rasmus"]
[Result "1-0"]
[ECO "B06"]
[WhiteElo "2514"]
[BlackElo "2337"]
[Annotator "TA"]
[PlyCount "65"]
[EventDate "2023.12.24"]
[EventType "swiss"]
[EventCountry "POL"]
[SourceTitle "playchess.com"]
[Source "ChessBase"]
[SourceQuality "1"]
[TimeControl "40/5400+30:1800+30"]

{[%evp 9,65,20,52,2,40,45,53,49,48,30,46,23,54,12,71,40,34,24,31,27,28,-12,-11,-12,-8,-18,-10,-19,0,-15,16,18,37,32,20,14,25,32,32,15,0,0,0,0,0,-14,34,0,-15,-18,50,-13,60,49,35,16,201,196]} 1. d4 {[%emt 0:00:01]} g6 {[%emt 0:00:26]} 2. e4 {[%emt 0:00:45]} Bg7 {[%emt 0:00:10]} 3. Nc3 {[%emt 0:00:15]} d6 {[%emt 0:00:08]} 4. h3 {[%emt 0:01:48]} a6 {[%emt 0:00:53]} 5. a4 {[%emt 0:00:41]} Nd7 {[%emt 0:00:56]} 6. g4 {[%emt 0:00:41]} (6. Nf3 $14) 6... e6 {[%emt 0:03:33]} 7. Be3 {[%emt 0:01:32]} b6 {[%emt 0:00:57]} 8. Bg2 {[%emt 0:01:07] White is slightly better.} Bb7 {[%emt 0:03:23]} 9. Nge2 {[%emt 0:00:07]} Ne7 {[%emt 0:00:22]} 10. Qd2 {[%emt 0:00:27]} h6 {[%emt 0:00:59]} 11. Rd1 {[%emt 0:01:57]} Nf6 {[%emt 0:14:44]} (11... h5 $11 {keeps the balance.}) 12. Ng3 {[%emt 0:03:27]} h5 {[%emt 0:02:17]} 13. g5 {[%emt 0:01:04]} Nd7 {[%emt 0:02:40]} 14. h4 {[%emt 0:00:24]} d5 {[%emt 0:09:36]} 15. e5 {[%emt 0:00:27]} c5 {[%emt 0:02:04]} 16. f4 {[%emt 0:02:56]} Rc8 {[%emt 0:05:24]} 17. O-O {[%emt 0:00:30]} cxd4 {[%emt 0:00:30]} 18. Bxd4 {[%emt 0:00:30]} Nc6 {[%emt 0:00:30]} 19. Bf2 {[%emt 0:00:30][%cal Oc3d5]} Na5 {[%emt 0:11:40]} 20. Nce2 {[%emt 0:02:18]} Qc7 21. Nd4 Nc6 {[%emt 0:02:57]} 22. c3 {[%emt 0:19:25][%cal Of4f5]} Nc5 {[%emt 0:05:21]} 23. Qc2 {[%emt 0:00:18]} Qd7 {[%emt 0:01:43]} 24. Nb3 {[%emt 0:09:04]} Qe7 {[%emt 0:07:58]} 25. Nxc5 {[%emt 0:06:41]} bxc5 {[%emt 0:00:09]} 26. Bf3 {[%emt 0:02:12]} Qc7 {[%emt 0:03:51]} 27. Qe2 {[%emt 0:07:05]} ({Don't play} 27. Bxc5 Nxe5 28. Bd4 Nxf3+ 29. Rxf3 Bxd4+ 30. Rxd4 a5 $15) 27... Ne7 {[%emt 0:01:45]} (27... c4 $11) 28. Kh2 {[%emt 0:02:08]} Qa5 {[%emt 0:04:24]} 29. Ra1 {[%emt 0:00:25]} Qc7 {[%emt 0:01:49]} ({Better is} 29... Rb8 $11) 30. Rfe1 {[%emt 0:01:09]} (30. b4 $14) 30... Qd7 {[%emt 0:05:30]} (30... O-O $11) 31. Red1 $14 {[%emt 0:00:41] Black must now prevent Ne4.} c4 {[%emt 0:02:32]} 32. Bd4 {[%emt 0:02:27]} Nf5 $2 {[%emt 0:03:24] [#]} (32... Bc6 $11) 33. Nxf5 {[%emt 0:00:10] Weighted Error Value: White=0.14 (very precise) /Black=0.29 (precise)} 1-0

[Event "Cracovia Festival-A 2023"]
[Site "Krakow"]
[Date "2024.01.02"]
[Round "7.8"]
[White "Soffer, Ram"]
[Black "Steindl, Johannes"]
[Result "1/2-1/2"]
[ECO "B52"]
[WhiteElo "2444"]
[BlackElo "2334"]
[Annotator "RC"]
[PlyCount "27"]
[EventDate "2023.12.24"]
[EventType "swiss"]
[EventCountry "POL"]
[SourceTitle "playchess.com"]
[Source "ChessBase"]
[SourceQuality "1"]
[TimeControl "40/5400+30:1800+30"]

1. e4 {[%emt 0:02:58]} c5 {[%emt 0:00:11]} 2. Nf3 {[%emt 0:00:07]} d6 {[%emt 0:00:05]} 3. Bb5+ {[%emt 0:00:18]} Bd7 {[%emt 0:00:04]} 4. Bxd7+ {[%emt 0:00:16]} Qxd7 {[%emt 0:00:03]} 5. c4 {[%emt 0:00:08]} Nc6 {[%emt 0:01:05]} 6. d4 {[%emt 0:01:19]} cxd4 {[%emt 0:00:04]} 7. Nxd4 {[%emt 0:00:06]} Nf6 {[%emt 0:00:21]} 8. Nc3 {[%emt 0:00:09]} g6 {[%emt 0:00:04]} 9. b3 {[%emt 0:00:18]} Bg7 {[%emt 0:01:14]} 10. Bb2 {[%emt 0:00:07]} Qg4 {[%emt 0:00:22]} 11. Qxg4 {[%emt 0:00:24]} Nxg4 {[%emt 0:00:03]} 12. Nxc6 {[%emt 0:00:20]} bxc6 {[%emt 0:00:03]} 13. h3 {[%emt 0:00:20]} Ne5 {[%emt 0:13:05]} 14. O-O-O {[%emt 0:01:37]} 1/2-1/2

[Event "Cracovia Festival-A 2023"]
[Site "Krakow"]
[Date "2024.01.02"]
[Round "7.9"]
[White "Lewicki, Miroslaw"]
[Black "Kozak, Antoni"]
[Result "1-0"]
[ECO "B06"]
[WhiteElo "2321"]
[BlackElo "2442"]
[Annotator "RC"]
[PlyCount "71"]
[EventDate "2023.12.24"]
[EventType "swiss"]
[EventCountry "POL"]
[SourceTitle "playchess.com"]
[Source "ChessBase"]
[SourceQuality "1"]
[TimeControl "40/5400+30:1800+30"]

1. e4 {[%emt 0:00:04]} g6 {[%emt 0:00:41]} 2. d4 {[%emt 0:00:31]} Bg7 {[%emt 0:00:13]} 3. Nf3 {[%emt 0:01:08]} d6 {[%emt 0:00:04]} 4. Bc4 {[%emt 0:01:04]} Nf6 {[%emt 0:00:10]} 5. Qe2 {[%emt 0:01:24]} Nc6 {[%emt 0:02:31]} 6. O-O {[%emt 0:05:22]} e5 {[%emt 0:04:41]} 7. dxe5 {[%emt 0:01:27]} Nxe5 {[%emt 0:11:39]} 8. Nxe5 {[%emt 0:00:12]} dxe5 {[%emt 0:00:06]} 9. Rd1 {[%emt 0:00:04]} Bd7 {[%emt 0:02:05]} 10. Nc3 {[%emt 0:01:53]} c6 {[%emt 0:06:08]} 11. Bg5 {[%emt 0:04:58]} h6 {[%emt 0:00:59]} 12. Bxf6 {[%emt 0:04:10]} Qxf6 {[%emt 0:15:29]} 13. Rd3 {[%emt 0:00:07]} Qe7 {[%emt 0:02:52]} 14. Rad1 {[%emt 0:01:39]} O-O-O {[%emt 0:01:33]} 15. Qe3 {[%emt 0:02:44]} b6 {[%emt 0:04:15]} 16. a4 {[%emt 0:12:00]} Bg4 {[%emt 0:04:45]} 17. f3 {[%emt 0:01:26]} Rxd3 {[%emt 0:10:18]} 18. Rxd3 {[%emt 0:05:18]} Bd7 {[%emt 0:00:03]} 19. a5 {[%emt 0:03:37]} Kc7 {[%emt 0:00:15]} 20. Na4 {[%emt 0:02:25]} Rb8 {[%emt 0:00:03]} 21. Rb3 {[%emt 0:05:27]} b5 {[%emt 0:00:37]} 22. a6 {[%emt 0:07:57]} Ra8 {[%emt 0:01:10]} 23. Nc3 {[%emt 0:10:31]} bxc4 {[%emt 0:08:42]} 24. Rb7+ {[%emt 0:00:05]} Kd8 {[%emt 0:00:09]} 25. Rxa7 {[%emt 0:00:26]} Rxa7 {[%emt 0:00:23]} 26. Qxa7 {[%emt 0:00:05]} Qb4 {[%emt 0:00:24]} 27. Qa8+ {[%emt 0:15:03]} Kc7 {[%emt 0:00:11]} 28. Qa7+ {[%emt 0:00:04]} Kc8 {[%emt 0:00:33]} 29. Kf1 {[%emt 0:00:49]} Qb8 {[%emt 0:10:37]} 30. Qc5 {[%emt 0:00:33]} Qxb2 {[%emt 0:00:35]} 31. a7 {[%emt 0:08:10]} Kb7 {[%emt 0:05:38]} 32. Qa5 {[%emt 0:03:41]} Qc1+ {[%emt 0:02:14]} 33. Ke2 {[%emt 0:00:09]} Qxc2+ {[%emt 0:03:23]} 34. Ke1 {[%emt 0:00:06]} Ka8 {[%emt 0:02:54]} 35. Na4 {[%emt 0:00:40]} Kb7 {[%emt 0:00:10]} 36. a8=Q# 1-0